bitfinex/quotes_BTCUSD_20250320
["timestamp","ask_amount","ask_price","bid_price","bid_amount"]
[1742491099725,0.58016105,84133.0,84132.0,4e-07]
[1742491101778,0.58492405,84133.0,84132.0,4e-07]
[1742491102648,0.70449908,84133.0,84132.0,4e-07]
[1742491102824,0.68586183,84133.0,84132.0,4e-07]
[1742491105823,0.70450075,84133.0,84132.0,4e-07]
[1742491107511,1.11260075,84133.0,84132.0,4e-07]
[1742491112663,0.99302572,84133.0,84132.0,4e-07]
[1742491113222,0.58492572,84133.0,84132.0,4e-07]
[1742491118346,0.70450075,84133.0,84132.0,4e-07]
[1742491119163,0.0122592,84133.0,84132.0,0.11957543]
[1742491119410,0.0122592,84133.0,84132.0,0.49413643]
[1742491119653,0.01278869,84133.0,84132.0,1.99413643]
[1742491119893,0.0043384,84133.0,84132.0,1.99413643]
[1742491120125,0.0043384,84133.0,84132.0,2.00602243]
[1742491120327,0.0003384,84133.0,84132.0,2.00602243]
[1742491121004,0.2499414,84133.0,84132.0,1.6368404]
[1742491121196,0.24150669,84133.0,84132.0,1.6368404]
[1742491121371,0.24450669,84133.0,84132.0,1.6368404]
[1742491121753,0.24150669,84133.0,84132.0,4e-07]
[1742491121962,0.25339169,84133.0,84132.0,4e-07]
[1742491122190,0.27302824,84133.0,84132.0,4e-07]
[1742491125041,0.29524741,84133.0,84132.0,4e-07]
[1742491126472,0.27302824,84133.0,84132.0,4e-07]
[1742491126646,0.57302824,84133.0,84132.0,4e-07]
[1742491130338,0.57302824,84133.0,84132.0,0.2377214]
[1742491130339,0.02697556,84133.0,84132.0,0.2377214]
[1742491130555,0.02697556,84133.0,84132.0,0.35729643]
[1742491131015,0.02697556,84133.0,84132.0,0.36918243]
[1742491131225,0.02352527,84133.0,84132.0,0.36918243]
[1742491131639,0.02352527,84133.0,84132.0,0.44498243]
[1742491131848,0.02252527,84133.0,84132.0,0.44498243]
[1742491132179,0.02252527,84133.0,84132.0,0.44698243]
[1742491132405,0.0003384,84133.0,84132.0,0.44698243]
[1742491134344,0.00381413,84133.0,84132.0,0.44698243]
[1742491134545,0.02250555,84133.0,84132.0,0.49208243]
[1742491134921,0.02598128,84133.0,84132.0,1.99208243]
[1742491135120,0.02250555,84133.0,84132.0,1.99208243]
[1742491135324,0.02250555,84133.0,84132.0,2.42025288]
[1742491135532,0.0003384,84133.0,84132.0,2.42025288]
[1742491135809,0.2499414,84133.0,84132.0,2.15610503]
[1742491136008,0.2499414,84133.0,84132.0,2.11100503]
[1742491136241,0.2499414,84133.0,84132.0,0.12157543]
[1742491136372,0.25341713,84133.0,84132.0,0.0020004]
[1742491136578,0.55341713,84133.0,84132.0,0.0020004]
[1742491137175,0.57205381,84133.0,84132.0,4e-07]
[1742491137615,0.57205381,84133.0,84132.0,0.0010004]
[1742491140906,0.55341713,84133.0,84132.0,0.0010004]
[1742491142997,0.55341713,84133.0,84132.0,4e-07]
[1742491143237,0.55741713,84133.0,84132.0,4e-07]
[1742491144389,0.549621,84127.0,84126.0,0.0003374]
[1742491144834,0.55306921,84127.0,84126.0,0.0003374]
[1742491147057,0.25306921,84127.0,84126.0,0.0003374]
[1742491147313,0.00344821,84127.0,84126.0,0.11991243]
[1742491147740,0.004,84127.0,84126.0,0.11991243]
[1742491147943,0.24518082,84127.0,84126.0,0.11991243]
[1742491148181,0.00944582,84127.0,84126.0,0.36953643]
[1742491148378,0.00944582,84127.0,84126.0,0.62087728]
[1742491148580,0.004,84127.0,84126.0,0.62087728]
[1742491150000,0.0003384,84133.0,84132.0,0.249607]
[1742491150205,0.0003384,84133.0,84132.0,0.93502203]
[1742491150397,0.00380872,84133.0,84132.0,0.93502203]
[1742491150599,0.0003384,84133.0,84132.0,0.93502203]
[1742491151142,0.0003384,84133.0,84132.0,0.93602203]
[1742491151551,0.0003384,84133.0,84132.0,1.03366288]
[1742491151758,0.0003384,84133.0,84132.0,1.08766288]
[1742491153061,0.0003384,84133.0,84132.0,1.08666288]
[1742491153473,0.0003384,84133.0,84132.0,1.09066288]
[1742491153676,0.0003384,84133.0,84132.0,1.18566288]
[1742491153880,0.0122234,84133.0,84132.0,1.05827503]
[1742491154106,0.0122234,84133.0,84132.0,0.68941503]
[1742491154308,0.2499414,84133.0,84132.0,0.82617503]
[1742491154642,0.25350538,84133.0,84132.0,0.82617503]
[1742491155203,0.25350538,84133.0,84132.0,0.7066]
[1742491155583,0.25350538,84133.0,84132.0,0.7026]
[1742491156188,0.00390238,84133.0,84132.0,0.82217503]
[1742491156533,0.00390238,84133.0,84132.0,1.05989603]
[1742491156827,0.0003384,84133.0,84132.0,0.82317503]
[1742491157191,0.0003384,84133.0,84132.0,1.07278203]
[1742491157527,0.00387466,84133.0,84132.0,1.07178203]
[1742491157727,0.0003384,84133.0,84132.0,1.07178203]
[1742491157963,0.0013384,84133.0,84132.0,1.18632288]
[1742491158168,0.0013384,84133.0,84132.0,1.31662288]
[1742491159735,0.0013384,84133.0,84132.0,1.24249603]
[1742491159938,0.0013384,84133.0,84132.0,1.17195123]
[1742491160334,0.0003384,84133.0,84132.0,1.17195123]
[1742491160839,0.0003384,84133.0,84132.0,1.17495123]
[1742491161139,0.0003384,84133.0,84132.0,1.17295123]
[1742491161672,0.0003384,84133.0,84132.0,0.92534423]
[1742491161874,0.2499414,84133.0,84132.0,0.82534423]
[1742491162297,0.25348458,84133.0,84132.0,0.82534423]
[1742491163388,0.2757092,84133.0,84132.0,0.68858423]
[1742491163597,0.2757092,84133.0,84132.0,0.82334423]
[1742491163795,0.2757092,84133.0,84132.0,0.82534423]
[1742491164216,0.2757092,84133.0,84132.0,0.82434423]
[1742491164417,0.2757092,84133.0,84132.0,0.82334423]
[1742491164635,0.25348458,84133.0,84132.0,2.32334423]
[1742491164940,0.25348458,84133.0,84132.0,2.32234423]
[1742491165360,0.25348458,84133.0,84132.0,2.32334423]
[1742491165894,0.25348458,84133.0,84132.0,2.18658423]
[1742491166102,0.55348458,84133.0,84132.0,0.5670092]
[1742491166316,0.55348458,84133.0,84132.0,0.0011692]
[1742491166740,0.57571818,84133.0,84132.0,0.0011692]
[1742491167239,0.57571818,84133.0,84132.0,0.0053292]
[1742491167396,0.57871818,84133.0,84132.0,0.0053292]
[1742491167651,0.58071818,84133.0,84132.0,0.0053292]
[1742491168001,0.58071818,84133.0,84132.0,0.12490423]
[1742491169099,0.55848458,84133.0,84132.0,0.12490423]
[1742491169299,0.55648458,84133.0,84132.0,0.12490423]
[1742491169503,0.55348458,84133.0,84132.0,0.12490423]
[1742491169926,0.55448458,84133.0,84132.0,0.12490423]
[1742491170435,0.55348458,84133.0,84132.0,0.12490423]
[1742491170811,0.55448458,84133.0,84132.0,0.12490423]
[1742491172487,0.57671551,84133.0,84132.0,0.12490423]
[1742491174518,0.55448458,84133.0,84132.0,0.12490423]
[1742491174714,0.30488158,84133.0,84132.0,1.62490423]
[1742491174917,0.00488158,84133.0,84132.0,1.86262523]
[1742491175097,0.0013384,84133.0,84132.0,1.87451123]
[1742491175310,0.0013384,84133.0,84132.0,1.88905208]
[1742491175736,0.0013384,84133.0,84132.0,1.91247603]
[1742491176141,0.0003384,84133.0,84132.0,1.91247603]
[1742491176582,0.0003384,84133.0,84132.0,2.32810563]
[1742491176780,4e-07,84133.0,84132.0,2.78660563]
[1742491177194,4e-07,84133.0,84132.0,2.78460563]
[1742491177393,4e-07,84133.0,84132.0,2.78860563]
[1742491177614,4e-07,84133.0,84132.0,2.78960563]
[1742491177866,4e-07,84133.0,84132.0,2.78860563]
[1742491178068,0.0003384,84151.0,84145.0,0.349568]
[1742491178291,2e-07,84151.0,84150.0,0.24267]
[1742491178452,2e-07,84151.0,84150.0,1.20599808]
[1742491178604,2e-07,84151.0,84150.0,2.70599808]
[1742491179254,2e-07,84151.0,84150.0,2.72973165]
[1742491179872,2e-07,84151.0,84150.0,3.01181581]
[1742491180096,0.0010002,84151.0,84150.0,3.01581581]
[1742491180763,0.0020002,84151.0,84150.0,3.01681581]
[1742491185435,0.0020002,84151.0,84150.0,1.0482108]
[1742491185851,0.0020002,84151.0,84150.0,2.1986578]
[1742491186228,0.0020002,84151.0,84150.0,2.1946578]
[1742491186229,0.0010002,84151.0,84150.0,2.1946578]
[1742491186611,0.0020002,84151.0,84150.0,2.1986578]
[1742491186812,0.0010002,84151.0,84150.0,2.1976578]
[1742491187369,0.0020002,84151.0,84150.0,2.1986578]
[1742491187573,0.00433869,84151.0,84150.0,2.1976578]
[1742491187685,0.00433869,84151.0,84150.0,2.1986578]
[1742491187891,0.0010002,84151.0,84150.0,2.1986578]
[1742491188091,2e-07,84151.0,84150.0,2.1946578]
[1742491188404,2e-07,84151.0,84150.0,2.1956578]
[1742491188620,2e-07,84151.0,84150.0,2.4333278]
[1742491188814,2e-07,84151.0,84150.0,2.45975165]
[1742491190751,2e-07,84151.0,84150.0,2.4452108]
[1742491191157,2e-07,84151.0,84150.0,2.1956578]
[1742491191471,2e-07,84151.0,84150.0,2.4452108]
[1742491195279,2e-07,84151.0,84150.0,2.0315816]
[1742491196289,2e-07,84151.0,84150.0,2.04612245]
[1742491196487,2e-07,84151.0,84150.0,2.12439155]
[1742491197096,2e-07,84151.0,84150.0,2.12339155]
[1742491198157,2e-07,84151.0,84150.0,2.12439155]
[1742491198362,2e-07,84151.0,84150.0,2.12339155]
[1742491198516,2e-07,84151.0,84150.0,2.12639155]
[1742491198864,2e-07,84151.0,84150.0,2.14102591]
[1742491200035,2e-07,84151.0,84150.0,2.60685511]
[1742491200236,2e-07,84151.0,84150.0,2.60185511]
[1742491200443,2e-07,84151.0,84150.0,2.60685511]
[1742491200847,2e-07,84151.0,84150.0,2.93185511]
[1742491201055,2e-07,84151.0,84150.0,3.21393927]
[1742491201716,2e-07,84151.0,84150.0,3.21093927]
[1742491201916,0.0010002,84151.0,84150.0,3.22643746]
[1742491202092,0.0010002,84151.0,84150.0,3.23143746]
[1742491202093,0.0020002,84151.0,84150.0,3.23143746]
[1742491202313,2e-07,84151.0,84150.0,3.23143746]
[1742491202519,2e-07,84151.0,84150.0,3.22643746]
[1742491202935,0.0010002,84151.0,84150.0,3.23143746]
[1742491203139,2e-07,84151.0,84150.0,3.23143746]
[1742491204579,2e-07,84151.0,84150.0,2.99376746]
[1742491205233,2e-07,84151.0,84150.0,2.23000426]
[1742491205673,2e-07,84151.0,84150.0,0.31637506]
[1742491205889,2e-07,84151.0,84150.0,0.16781206]
[1742491206122,0.011882,84154.0,84150.0,0.16281206]
[1742491206364,0.011883,84153.0,84150.0,0.16281206]
[1742491206607,0.011883,84151.0,84150.0,0.13907849]
[1742491207069,0.01555264,84151.0,84150.0,0.13407849]
[1742491207301,0.011883,84151.0,84150.0,0.13407849]
[1742491207564,0.383,84152.0,84150.0,0.14607849]
[1742491207821,0.3488,84151.0,84150.0,0.02080346]
[1742491208084,0.3488,84151.0,84150.0,0.01680346]
[1742491208337,0.96598308,84151.0,84150.0,0.01480346]
[1742491208596,0.96598308,84151.0,84150.0,0.01580346]
[1742491208829,0.0752,84149.0,84135.0,0.594]
[1742491209041,0.4262,84144.0,84135.0,0.594]
[1742491209303,0.081,84141.0,84135.0,0.594]
[1742491209545,3.85523,84140.0,84135.0,0.594]
[1742491209780,0.3,84138.0,84135.0,0.594]
[1742491210186,0.00352273,84137.0,84135.0,0.594]
[1742491210456,0.3,84135.0,84126.0,0.0003374]
[1742491210675,0.13668,84136.0,84126.0,0.0003374]
[1742491210941,0.00350878,84134.0,84126.0,0.0003374]
[1742491211192,0.13668,84136.0,84126.0,0.0003374]
[1742491211428,0.00350878,84133.0,84126.0,0.0003374]
[1742491211617,0.02409934,84136.0,84126.0,0.0003374]
[1742491211836,0.30350878,84133.0,84126.0,0.0003374]
[1742491212031,0.3,84133.0,84126.0,0.0003374]
[1742491212232,0.30350878,84133.0,84126.0,0.0003374]
[1742491212439,0.42308381,84133.0,84126.0,0.0003374]
[1742491212678,0.56802243,84133.0,84126.0,0.0003374]
[1742491212923,0.54938381,84133.0,84126.0,0.0003374]
[1742491214114,0.62340013,84133.0,84126.0,0.0003374]
[1742491214333,0.62340013,84133.0,84121.0,0.00075475]
[1742491214334,0.3,84128.0,84121.0,0.00075475]
[1742491214554,0.3,84126.0,84121.0,0.00075475]
[1742491214776,0.3,84124.0,84121.0,0.00075475]
[1742491215010,0.14144934,84123.0,84121.0,0.00075475]
[1742491215221,0.3,84122.0,84121.0,0.00075475]
[1742491215647,0.30340934,84122.0,84121.0,0.00075475]
[1742491215868,0.32205027,84122.0,84121.0,0.00075475]
[1742491217386,0.32605027,84122.0,84121.0,0.00075475]
[1742491217642,0.33105027,84122.0,84121.0,0.00075475]
[1742491218224,0.02605027,84122.0,84121.0,0.00075475]
[1742491218427,0.03105027,84122.0,84121.0,0.00075475]
[1742491219035,0.02605027,84122.0,84121.0,0.00075475]
[1742491220047,0.02205027,84122.0,84121.0,0.00075475]
[1742491220453,0.02605027,84122.0,84121.0,0.00075475]
[1742491220660,0.03105027,84122.0,84121.0,0.00075475]
[1742491221069,0.03005027,84122.0,84121.0,0.00075475]
[1742491221508,0.03505027,84122.0,84121.0,0.00075475]
[1742491221886,0.01640934,84122.0,84121.0,0.00075475]
[1742491223078,0.01640934,84122.0,84121.0,0.00092395]
[1742491223255,0.01674774,84122.0,84121.0,0.00092395]
[1742491225066,1.01467977,84122.0,84121.0,0.00092395]
[1742491225298,0.84608577,84122.0,84121.0,0.00092395]
[1742491225608,0.69273977,84122.0,84121.0,0.00092395]
[1742491225816,0.71138278,84122.0,84121.0,0.00092395]
[1742491226037,0.33539075,84122.0,84121.0,0.00092395]
[1742491226378,0.35745217,84122.0,84121.0,0.00092395]
[1742491228289,1.0945432,84122.0,84121.0,0.00092395]
[1742491228493,1.1098092,84122.0,84121.0,0.00092395]
[1742491229120,0.9226892,84122.0,84121.0,0.00092395]
[1742491229525,0.5957562,84122.0,84121.0,0.00092395]
[1742491229940,0.57369478,84122.0,84121.0,0.00092395]
[1742491230587,0.57866578,84122.0,84121.0,0.00092395]
[1742491231510,0.57867578,84122.0,84121.0,0.00092395]
[1742491231719,0.33539075,84122.0,84121.0,0.00092395]
[1742491233684,0.31674774,84122.0,84121.0,0.00092395]
[1742491234859,0.30874774,84122.0,84121.0,0.00092395]
[1742491235315,0.30674774,84122.0,84121.0,0.00092395]
[1742491235539,0.30374774,84122.0,84121.0,0.00092395]
[1742491235766,0.00874774,84122.0,84121.0,0.12049898]
[1742491235989,0.00874774,84122.0,84121.0,0.25773898]
[1742491236198,0.00874774,84122.0,84121.0,1.78201643]
[1742491236199,0.0003384,84122.0,84121.0,1.78201643]
[1742491236610,0.0053384,84122.0,84121.0,1.78201643]
[1742491237029,0.0003384,84122.0,84121.0,1.78201643]
[1742491237430,0.0033384,84122.0,84121.0,1.78301643]
[1742491238640,0.0033384,84122.0,84121.0,1.78201643]
[1742491238879,0.0033384,84122.0,84121.0,2.38998648]
[1742491239059,0.0003384,84122.0,84121.0,2.39098648]
[1742491239412,0.0003384,84122.0,84121.0,2.39198648]
[1742491239609,0.0003384,84122.0,84121.0,2.71498648]
[1742491239856,0.0003384,84122.0,84121.0,2.71698648]
[1742491240029,0.0003384,84162.0,84137.0,0.1306]
[1742491240246,0.26480804,84160.0,84140.0,0.01454085]
[1742491240458,0.00428878,84156.0,84141.0,0.11957503]
[1742491241248,0.26480804,84151.0,84141.0,0.11957503]
[1742491241474,0.3,84159.0,84142.0,0.13732]
[1742491241677,0.00428878,84150.0,84143.0,0.11957503]
[1742491241993,0.3,84159.0,84143.0,0.11957503]
[1742491242239,0.3,84159.0,84144.0,0.00237646]
[1742491242439,0.00428878,84156.0,84145.0,0.11957503]
[1742491242654,0.00428878,84156.0,84146.0,0.00237638]
[1742491242873,0.0033382,84157.0,84146.0,0.00237638]
[1742491242874,0.0003382,84157.0,84147.0,0.11957503]
[1742491243227,0.0003382,84157.0,84146.0,0.00237638]
[1742491243228,0.001,84151.0,84150.0,0.1]
[1742491243409,0.0003382,84157.0,84151.0,0.01454085]
[1742491243542,0.0003382,84157.0,84152.0,0.1219512]
[1742491244874,0.0003382,84157.0,84153.0,1.5]
[1742491245073,0.0003382,84157.0,84154.0,0.2592712]
[1742491245280,0.001,84156.0,84154.0,0.25689503]
[1742491245706,0.0003382,84157.0,84154.0,0.25689503]
[1742491246067,0.0013382,84157.0,84154.0,0.25689503]
[1742491246620,0.0003382,84157.0,84154.0,0.25689503]
[1742491246794,0.0013382,84157.0,84154.0,0.25689503]
[1742491247555,0.0013382,84157.0,84154.0,0.11957503]
[1742491248183,0.0013382,84157.0,84150.0,0.16071076]
[1742491248184,0.0003382,84157.0,84150.0,0.13704]
[1742491248507,0.00434037,84156.0,84150.0,0.13704]
[1742491251517,0.00534037,84156.0,84150.0,0.13704]
[1742491251927,0.00434037,84156.0,84150.0,0.13704]
[1742491252126,0.00434037,84156.0,84142.0,0.02395182]
[1742491252127,0.00434037,84156.0,84142.0,0.16087182]
[1742491252308,0.00534037,84156.0,84143.0,0.11957503]
[1742491252514,0.3,84152.0,84143.0,0.11957503]
[1742491252941,0.00434037,84151.0,84143.0,0.11957503]
[1742491253145,0.02297311,84151.0,84143.0,0.11957503]
[1742491253625,0.01863274,84151.0,84143.0,0.11957503]
[1742491254022,0.001,84156.0,84143.0,0.11957503]
[1742491254213,0.001,84156.0,84143.0,0.12057503]
[1742491254418,0.00433421,84155.0,84144.0,0.13684]
[1742491254580,0.00433421,84155.0,84145.0,1.61957503]
[1742491255508,0.00433421,84155.0,84146.0,0.00237658]
[1742491255667,0.0003382,84157.0,84147.0,0.11957503]
[1742491255879,0.00433421,84156.0,84147.0,0.11957503]
[1742491256365,0.001,84155.0,84148.0,1.5]
[1742491256546,0.001,84155.0,84149.0,0.11957503]
[1742491256739,0.0003382,84157.0,84149.0,0.11957503]
[1742491256977,0.00433421,84154.0,84145.0,1.5]
[1742491257154,0.004,84156.0,84144.0,0.13684]
[1742491257333,0.004,84156.0,84144.0,0.25641503]
[1742491257722,0.002,84155.0,84144.0,0.25641503]
[1742491258021,0.004,84156.0,84144.0,0.25641503]
[1742491258222,0.01863235,84153.0,84144.0,0.25641503]
[1742491258592,0.01863235,84153.0,84133.0,0.13672]
[1742491258593,0.0477,84151.0,84133.0,0.13672]
[1742491258767,0.3,84149.0,84133.0,0.13672]
[1742491258997,0.3,84142.0,84133.0,0.25629503]
[1742491259421,0.00433421,84141.0,84133.0,0.25629503]
[1742491259792,0.01863472,84140.0,84133.0,0.11957503]
[1742491260378,0.01863472,84140.0,84122.0,0.0001692]
[1742491260579,0.3,84131.0,84122.0,0.0001692]
[1742491260817,0.3823,84131.0,84122.0,0.0001692]
[1742491260976,0.3,84131.0,84122.0,0.0001692]
[1742491261180,0.00433421,84130.0,84122.0,0.0001692]
[1742491261837,0.0499,84129.0,84122.0,0.0001692]
[1742491262419,0.00433421,84128.0,84122.0,0.0001692]
[1742491263813,0.00733421,84128.0,84122.0,0.0001692]
[1742491264018,0.00933421,84128.0,84122.0,0.0001692]
[1742491264940,0.3,84126.0,84122.0,0.0001692]
[1742491265159,0.3,84124.0,84122.0,0.0001692]
[1742491265344,1.432221,84123.0,84122.0,0.0001692]
[1742491265541,1.234486,84123.0,84122.0,0.0001692]
[1742491265682,0.87827542,84123.0,84122.0,0.0001692]
[1742491266506,0.99785045,84123.0,84122.0,0.0001692]
[1742491266716,1.00185045,84123.0,84122.0,0.0001692]
[1742491267165,1.00685045,84123.0,84122.0,0.0001692]
[1742491267364,1.03063935,84123.0,84122.0,0.0001692]
[1742491268356,1.02563935,84123.0,84122.0,0.0001692]
[1742491268926,1.24663688,84123.0,84122.0,0.0001692]
[1742491269061,0.005,84120.0,84113.0,0.0003374]
[1742491269271,0.3,84118.0,84113.0,0.0001692]
[1742491269481,0.3,84116.0,84113.0,0.0001692]
[1742491269677,0.3,84114.0,84113.0,0.0001692]
[1742491269883,0.41957503,84114.0,84113.0,0.0001692]
[1742491270082,0.42383441,84114.0,84113.0,0.0001692]
[1742491270260,0.44247814,84114.0,84113.0,0.0001692]
[1742491270668,1.13274814,84114.0,84113.0,0.0001692]
[1742491270923,1.12226314,84114.0,84113.0,0.0001692]
[1742491271126,1.23141941,84114.0,84113.0,0.0001692]
[1742491271898,1.65343189,84114.0,84113.0,0.0001692]
[1742491272315,1.65743189,84114.0,84113.0,0.0001692]
[1742491272511,1.65943189,84114.0,84113.0,0.0001692]
[1742491272713,1.65543189,84114.0,84113.0,0.0001692]
[1742491273131,1.54881889,84114.0,84113.0,0.0001692]
[1742491273257,1.54681889,84114.0,84113.0,0.0001692]
[1742491273466,1.47368789,84114.0,84113.0,0.0001692]
[1742491273884,1.47868789,84114.0,84113.0,0.0001692]
[1742491274059,1.48368789,84114.0,84113.0,0.0001692]
[1742491274271,1.49733376,84114.0,84113.0,0.0001692]
[1742491275724,1.50233376,84114.0,84113.0,0.0001692]
[1742491276071,0.005,84113.0,84104.0,1e-08]
[1742491276376,0.0823,84106.0,84098.0,0.00029821]
[1742491276499,0.3,84104.0,84098.0,0.00029821]
[1742491276707,4.21440403,84105.0,84098.0,0.00029821]
[1742491276708,0.3,84102.0,84098.0,0.00029821]
[1742491277022,0.3,84100.0,84098.0,0.00029821]
[1742491277222,2.60870703,84099.0,84098.0,0.00029821]
[1742491277564,2.78971297,84099.0,84098.0,0.00029821]
[1742491278196,2.69669097,84099.0,84098.0,0.00029821]
[1742491278992,2.51854297,84099.0,84098.0,0.00029821]
[1742491279189,2.52354297,84099.0,84098.0,0.00029821]
[1742491279712,2.52754297,84099.0,84098.0,0.00029821]
[1742491280487,2.67125213,84099.0,84098.0,0.00029821]
[1742491280686,0.549711,84097.0,84096.0,1e-08]
[1742491280892,0.66928603,84097.0,84096.0,1e-08]
[1742491281152,0.6734655,84097.0,84096.0,1e-08]
[1742491281708,0.55389047,84097.0,84096.0,1e-08]
[1742491282259,0.55889047,84097.0,84096.0,1e-08]
[1742491282471,0.56189047,84097.0,84096.0,1e-08]
[1742491284076,0.58053725,84097.0,84096.0,1e-08]
[1742491289385,0.83501228,84097.0,84096.0,1e-08]
[1742491290181,0.82201228,84097.0,84096.0,1e-08]
[1742491290725,0.83201228,84097.0,84096.0,1e-08]
[1742491290924,0.82701228,84097.0,84096.0,1e-08]
[1742491292070,0.82201228,84097.0,84096.0,1e-08]
[1742491292264,0.83177828,84097.0,84096.0,1e-08]
[1742491292450,0.83677828,84097.0,84096.0,1e-08]
[1742491293714,0.549725,84092.0,84091.0,0.00096001]
[1742491293913,1.7461078,84092.0,84091.0,0.00096001]
[1742491294113,1.5486468,84092.0,84091.0,0.00096001]
[1742491294903,1.0644168,84092.0,84091.0,0.00096001]
[1742491295108,1.4115038,84092.0,84091.0,0.00096001]
[1742491295342,1.42065913,84092.0,84091.0,0.00096001]
[1742491295560,1.35646213,84092.0,84091.0,0.00096001]
[1742491295781,1.33739413,84092.0,84091.0,0.00096001]
[1742491296439,1.1174271,84092.0,84091.0,0.00096001]
[1742491300067,2.20498816,84092.0,84091.0,0.00096001]
[1742491300267,1.23700213,84092.0,84091.0,0.00096001]
[1742491301676,1.25926524,84092.0,84091.0,0.00096001]
[1742491301978,1.25926524,84092.0,84084.0,0.01293738]
[1742491301979,0.549732,84090.0,84084.0,0.01293738]
[1742491302174,0.66930703,84090.0,84084.0,0.01293738]
[1742491302328,0.67346589,84090.0,84084.0,0.01293738]
[1742491302759,1.119115,84090.0,84084.0,0.01293738]
[1742491303156,0.93914,84090.0,84084.0,0.01293738]
[1742491303360,1.02994,84090.0,84084.0,0.01293738]
[1742491304776,1.02994,84090.0,84089.0,4.905e-05]
[1742491304944,1.02094,84090.0,84089.0,4.905e-05]
[1742491305141,1.02594,84090.0,84089.0,4.905e-05]
[1742491305347,1.03094,84090.0,84089.0,4.905e-05]
[1742491305544,1.02594,84090.0,84089.0,4.905e-05]
[1742491305748,1.03094,84090.0,84089.0,4.905e-05]
[1742491305952,1.02594,84090.0,84089.0,4.905e-05]
[1742491306330,1.03094,84090.0,84089.0,4.905e-05]
[1742491306533,0.96278801,84090.0,84089.0,4.905e-05]
[1742491306664,0.549746,84085.0,84084.0,0.00351619]
[1742491306866,0.66932103,84085.0,84084.0,0.00351619]
[1742491307066,0.55389493,84085.0,84084.0,0.00351619]
[1742491307702,0.54977,84077.0,84076.0,0.0001694]
[1742491307907,0.3,84077.0,84076.0,0.3133494]
[1742491308110,0.55392262,84077.0,84076.0,0.0754694]
[1742491308481,0.57257083,84077.0,84076.0,0.0754694]
[1742491308944,0.57457083,84077.0,84076.0,0.0754694]
[1742491309099,0.64424051,84077.0,84076.0,0.07588539]
[1742491309316,0.64724051,84077.0,84076.0,0.07588539]
[1742491310469,0.61164988,84077.0,84076.0,0.07588539]
[1742491310693,0.05006394,84077.0,84076.0,0.48014042]
[1742491310896,0.03141573,84077.0,84076.0,0.12268539]
[1742491311104,0.27703311,84077.0,84076.0,0.12268539]
[1742491311506,0.28118622,84077.0,84076.0,0.12268539]
[1742491311707,0.27918622,84077.0,84076.0,0.12268539]
[1742491311923,0.25392311,84077.0,84076.0,0.12268539]
[1742491312130,0.25692311,84077.0,84076.0,0.12268539]
[1742491312707,0.26905792,84077.0,84076.0,0.07588539]
[1742491313344,0.26905792,84077.0,84076.0,0.00058539]
[1742491314241,0.2877067,84077.0,84076.0,0.00058539]
[1742491317782,0.5877067,84077.0,84076.0,0.00058539]
[1742491318562,0.0379367,84077.0,84076.0,0.25035939]
[1742491318962,0.0379367,84077.0,84076.0,0.35804042]
[1742491319080,0.0379367,84077.0,84076.0,0.12016042]
[1742491319711,0.2758137,84077.0,84076.0,0.12016042]
[1742491320318,0.2877067,84077.0,84076.0,0.12016042]
[1742491320524,0.2877067,84077.0,84076.0,0.00058539]
[1742491320990,0.2847067,84077.0,84076.0,0.00058539]
[1742491321205,0.2857067,84077.0,84076.0,0.00058539]
[1742491321370,0.56905792,84077.0,84076.0,0.00058539]
[1742491324510,0.58770836,84077.0,84076.0,0.00058539]
[1742491329005,0.28470836,84077.0,84076.0,0.00058539]
[1742491329209,0.03493836,84077.0,84076.0,0.00058539]
[1742491329382,0.27381536,84077.0,84076.0,0.00058539]
[1742491329599,0.03593836,84077.0,84076.0,0.20156042]
[1742491329803,0.27381536,84077.0,84076.0,0.20156042]
[1742491330201,0.28570836,84077.0,84076.0,0.20156042]
[1742491330421,0.28770836,84077.0,84076.0,0.08198539]
[1742491330590,0.28770836,84077.0,84076.0,0.00058539]
[1742491330843,0.31828792,84077.0,84076.0,0.00058539]
[1742491331157,0.31628792,84077.0,84076.0,0.00058539]
[1742491331357,0.31728792,84077.0,84076.0,0.00058539]
[1742491331781,0.31928792,84077.0,84076.0,0.00058539]
[1742491332765,0.31928792,84077.0,84076.0,0.23846539]
[1742491333230,0.31928792,84077.0,84076.0,0.25035939]
[1742491333432,0.31513481,84077.0,84076.0,0.25035939]
[1742491333850,0.33794546,84077.0,84076.0,0.23846539]
[1742491334022,0.33794546,84077.0,84076.0,0.25035939]
[1742491334167,0.03594546,84077.0,84076.0,0.36993442]
[1742491334370,0.03178443,84077.0,84076.0,0.36993442]
[1742491334986,0.03178443,84077.0,84075.0,0.237882]
[1742491335184,0.03220135,84077.0,84076.0,0.31998]
[1742491335471,0.03220135,84077.0,84076.0,1.831874]
[1742491335713,0.011894,84072.0,84066.0,0.0822694]
[1742491335918,0.311894,84075.0,84066.0,0.0001694]
[1742491336094,0.237899,84070.0,84066.0,0.2380744]
[1742491336341,0.249789,84071.0,84066.0,0.2380744]
[1742491336541,0.237898,84070.0,84066.0,0.2380744]
[1742491336697,0.00416135,84070.0,84066.0,0.2380744]
[1742491336894,0.00416135,84070.0,84069.0,0.237899]
[1742491337098,0.00416135,84070.0,84069.0,0.249793]
[1742491337331,0.3,84072.0,84071.0,0.249788]
[1742491337551,0.3,84072.0,84070.0,0.237896]
[1742491337699,0.3,84072.0,84069.0,0.249793]
[1742491338144,0.237886,84074.0,84066.0,0.2499694]
[1742491338145,0.237896,84071.0,84066.0,0.0001694]
[1742491338315,0.3,84073.0,84066.0,0.0001694]
[1742491338666,0.237902,84069.0,84066.0,0.0001694]
[1742491338853,0.237905,84067.0,84066.0,0.0001694]
[1742491339905,0.2498,84067.0,84066.0,0.0001694]
[1742491342715,0.2539468,84067.0,84066.0,0.0001694]
[1742491345570,0.67352183,84067.0,84066.0,0.0001694]
[1742491345741,1.60813483,84067.0,84066.0,0.0001694]
[1742491345944,1.15279083,84067.0,84066.0,0.0001694]
[1742491346341,0.7591137,84067.0,84066.0,0.0001694]
[1742491346564,1.3918687,84067.0,84066.0,0.0001694]
[1742491346768,1.18774402,84067.0,84066.0,0.0001694]
[1742491346930,0.98686402,84067.0,84066.0,0.0001694]
[1742491347333,0.77776802,84067.0,84066.0,0.0001694]
[1742491347548,0.77676802,84067.0,84066.0,0.0001694]
[1742491347751,0.65919299,84067.0,84066.0,0.0001694]
[1742491348068,0.66019299,84067.0,84066.0,0.0001694]
[1742491348451,0.65919299,84067.0,84066.0,0.0001694]
[1742491348690,0.58669299,84067.0,84066.0,0.0001694]
[1742491349049,0.58469299,84067.0,84066.0,0.0001694]
[1742491349245,0.27560112,84067.0,84066.0,0.0001694]
[1742491349447,0.02980112,84067.0,84066.0,0.0001694]
[1742491349669,0.26770612,84067.0,84066.0,0.0001694]